[Event "Early-Titled-Tuesday-Blitz-March-26-2024"]
[Site "Chess.com"]
[Date "2024.03.26"]
[Round "10"]
[White "Zohid6"]
[Black "shimastream"]
[Result "1-0"]
[WhiteElo "2922"]
[BlackElo "3009"]
[TimeControl "180+1"]
[EndTime "9:52:47 PDT"]
[Termination "Zohid6 won by resignation"]

1. e4 {[%clk 0:03:00.9]} 1... e5 {[%clk 0:02:56.3]} 2. Nf3 {[%clk 0:03:00.7]}
2... Qe7 {[%clk 0:02:51.1]} 3. Nc3 {[%clk 0:02:55.8]} 3... c6 {[%clk 0:02:51.1]}
4. d4 {[%clk 0:02:50.5]} 4... d6 {[%clk 0:02:51.1]} 5. Bc4 {[%clk 0:02:48.4]}
5... Bg4 {[%clk 0:02:49.9]} 6. dxe5 {[%clk 0:02:48.1]} 6... dxe5 {[%clk
0:02:49.8]} 7. h3 {[%clk 0:02:48.1]} 7... Bh5 {[%clk 0:02:49.8]} 8. g4 {[%clk
0:02:43.4]} 8... Bg6 {[%clk 0:02:49.8]} 9. Qe2 {[%clk 0:02:38.6]} 9... Qc7
{[%clk 0:02:40.2]} 10. Be3 {[%clk 0:02:31.7]} 10... Bb4 {[%clk 0:02:37.2]} 11.
O-O-O {[%clk 0:02:16.9]} 11... Bxc3 {[%clk 0:02:35.6]} 12. bxc3 {[%clk
0:02:17.8]} 12... Nd7 {[%clk 0:02:35.3]} 13. Bb3 {[%clk 0:02:11.6]} 13... Ngf6
{[%clk 0:02:33.4]} 14. g5 {[%clk 0:01:59.7]} 14... Nxe4 {[%clk 0:02:26.5]} 15.
Nh4 {[%clk 0:01:58.7]} 15... Ndc5 {[%clk 0:02:05.9]} 16. Kb2 {[%clk 0:01:38]}
16... b5 {[%clk 0:01:56.5]} 17. f3 {[%clk 0:01:35.2]} 17... Nxb3 {[%clk
0:01:50.4]} 18. fxe4 {[%clk 0:01:13.7]} 18... Na5 {[%clk 0:01:44.5]} 19. Bc5
{[%clk 0:01:10.4]} 19... Nb7 {[%clk 0:01:42.1]} 20. Qe3 {[%clk 0:01:08.1]} 20...
Rc8 {[%clk 0:01:28.4]} 21. Nf5 {[%clk 0:00:35.8]} 21... Bxf5 {[%clk 0:01:20.1]}
22. exf5 {[%clk 0:00:36.7]} 22... Nxc5 {[%clk 0:01:20.8]} 23. Qxc5 {[%clk
0:00:37.3]} 23... Qe7 {[%clk 0:01:21.5]} 24. Rd6 {[%clk 0:00:37.5]} 24... O-O
{[%clk 0:00:51.9]} 25. f6 {[%clk 0:00:36.7]} 25... Qc7 {[%clk 0:00:52.1]} 26.
Rhd1 {[%clk 0:00:21.6]} 26... e4 {[%clk 0:00:51.1]} 27. fxg7 {[%clk 0:00:21.3]}
27... Rfe8 {[%clk 0:00:51.3]} 28. Qf5 {[%clk 0:00:20.6]} 28... Qe7 {[%clk
0:00:51]} 29. Rh6 {[%clk 0:00:20.4]} 1-0

[Event "Early-Titled-Tuesday-Blitz-March-26-2024"]
[Site "Chess.com"]
[Date "2024.03.26"]
[Round "10"]
[White "frequentblunders"]
[Black "kyuotbi"]
[Result "1-0"]
[WhiteElo "2197"]
[BlackElo "2265"]
[TimeControl "180+1"]
[EndTime "9:52:48 PDT"]
[Termination "frequentblunders won on time"]

1. d3 {[%clk 0:03:00.6]} 1... Nf6 {[%clk 0:02:58.8]} 2. f4 {[%clk 0:03:00.6]}
2... d5 {[%clk 0:02:55.6]} 3. Nf3 {[%clk 0:03:00.7]} 3... c5 {[%clk 0:02:55.9]}
4. g3 {[%clk 0:03:01.6]} 4... Nc6 {[%clk 0:02:56.4]} 5. Bg2 {[%clk 0:03:02.3]}
5... g6 {[%clk 0:02:57]} 6. O-O {[%clk 0:03:03.2]} 6... Bg7 {[%clk 0:02:57.6]}
7. Nc3 {[%clk 0:03:03.9]} 7... O-O {[%clk 0:02:57.2]} 8. e4 {[%clk 0:03:04.6]}
8... d4 {[%clk 0:02:55]} 9. Ne2 {[%clk 0:03:05.1]} 9... e5 {[%clk 0:02:52.5]}
10. Nh4 {[%clk 0:03:01.3]} 10... exf4 {[%clk 0:02:50.5]} 11. gxf4 {[%clk
0:02:59.6]} 11... Ng4 {[%clk 0:02:45.3]} 12. Nf3 {[%clk 0:02:55.1]} 12... Ne3
{[%clk 0:02:40.5]} 13. Bxe3 {[%clk 0:02:54.3]} 13... dxe3 {[%clk 0:02:41.1]} 14.
c3 {[%clk 0:02:51.4]} 14... h5 {[%clk 0:02:26.8]} 15. Ng5 {[%clk 0:02:29.9]}
15... Bf6 {[%clk 0:02:10.1]} 16. Nf3 {[%clk 0:02:18.8]} 16... h4 {[%clk
0:02:08.2]} 17. h3 {[%clk 0:02:16.5]} 17... b6 {[%clk 0:02:04.8]} 18. Ne1 {[%clk
0:02:06.6]} 18... Bg7 {[%clk 0:01:46]} 19. Qc1 {[%clk 0:01:56.3]} 19... Ba6
{[%clk 0:01:29.3]} 20. Qxe3 {[%clk 0:01:55.4]} 20... Ne7 {[%clk 0:01:26.7]} 21.
Rd1 {[%clk 0:01:49.4]} 21... Qc7 {[%clk 0:01:24.9]} 22. Nf3 {[%clk 0:01:43.1]}
22... Bf6 {[%clk 0:01:19.3]} 23. Qf2 {[%clk 0:01:33.7]} 23... Rfd8 {[%clk
0:01:15.4]} 24. c4 {[%clk 0:01:29.6]} 24... Bxb2 {[%clk 0:01:11.3]} 25. Qxh4
{[%clk 0:01:25.8]} 25... Bg7 {[%clk 0:01:05]} 26. Ng5 {[%clk 0:01:20.9]} 26...
Bb7 {[%clk 0:01:00.1]} 27. Ng3 {[%clk 0:00:59.4]} 27... Rd4 {[%clk 0:00:56.5]}
28. f5 {[%clk 0:00:54.5]} 28... Qd6 {[%clk 0:00:13.6]} 29. f6 {[%clk 0:00:41.5]}
29... Nf5 {[%clk 0:00:01.2]} 30. Nxf5 {[%clk 0:00:30.3]} 1-0

[Event "Early-Titled-Tuesday-Blitz-March-26-2024"]
[Site "Chess.com"]
[Date "2024.03.26"]
[Round "10"]
[White "RebecaJimnz"]
[Black "IshviAggarwal"]
[Result "1-0"]
[WhiteElo "2246"]
[BlackElo "2168"]
[TimeControl "180+1"]
[EndTime "9:52:48 PDT"]
[Termination "RebecaJimnz won by resignation"]

1. e4 {[%clk 0:03:00.9]} 1... e5 {[%clk 0:02:59.4]} 2. d4 {[%clk 0:03:00.8]}
2... Nc6 {[%clk 0:03:00]} 3. d5 {[%clk 0:03:00.5]} 3... Nb8 {[%clk 0:02:59.8]}
4. Nf3 {[%clk 0:03:00.9]} 4... d6 {[%clk 0:02:58.8]} 5. c4 {[%clk 0:03:00.6]}
5... g6 {[%clk 0:02:55.2]} 6. Nc3 {[%clk 0:03:00.7]} 6... Bg7 {[%clk 0:02:55.8]}
7. Be3 {[%clk 0:03:01.2]} 7... Ne7 {[%clk 0:02:56.4]} 8. Qd2 {[%clk 0:02:57.1]}
8... c5 {[%clk 0:02:56.4]} 9. Bh6 {[%clk 0:02:56.2]} 9... O-O {[%clk 0:02:54]}
10. h4 {[%clk 0:02:56.3]} 10... f5 {[%clk 0:02:53.4]} 11. Bxg7 {[%clk
0:02:43.8]} 11... Kxg7 {[%clk 0:02:54.3]} 12. h5 {[%clk 0:02:44]} 12... f4
{[%clk 0:02:50]} 13. hxg6 {[%clk 0:02:35.4]} 13... hxg6 {[%clk 0:02:48.4]} 14.
O-O-O {[%clk 0:02:35.6]} 14... Bg4 {[%clk 0:02:44]} 15. Be2 {[%clk 0:02:35]}
15... Ng8 {[%clk 0:02:22]} 16. g3 {[%clk 0:02:27.3]} 16... a6 {[%clk 0:02:06.6]}
17. Rdg1 {[%clk 0:02:22.9]} 17... b5 {[%clk 0:01:41.9]} 18. gxf4 {[%clk
0:02:10.4]} 18... Rxf4 {[%clk 0:01:40.5]} 19. Nxe5 {[%clk 0:01:49.5]} 19... dxe5
{[%clk 0:01:29.4]} 20. Bxg4 {[%clk 0:01:45.7]} 20... Nf6 {[%clk 0:01:27.7]} 21.
Bf5 {[%clk 0:01:40.6]} 21... Kf7 {[%clk 0:01:10.1]} 22. Bxg6+ {[%clk 0:01:31.3]}
22... Ke7 {[%clk 0:01:09.7]} 23. Bf5 {[%clk 0:01:24.1]} 23... Nbd7 {[%clk
0:00:59.2]} 24. d6+ {[%clk 0:00:54.5]} 24... Kf7 {[%clk 0:00:49.4]} 25. Rh7+
{[%clk 0:00:43.2]} 25... Ke8 {[%clk 0:00:17.6]} 26. Bg6+ {[%clk 0:00:25.2]}
26... Kf8 {[%clk 0:00:14.5]} 27. Rh8+ {[%clk 0:00:25.5]} 27... Ng8 {[%clk
0:00:13.3]} 28. Bh7 {[%clk 0:00:25.7]} 28... Qf6 {[%clk 0:00:06.4]} 29. Rhxg8+
{[%clk 0:00:24.8]} 29... Kf7 {[%clk 0:00:05.8]} 30. Qd5+ {[%clk 0:00:24.4]} 1-0

[Event "Early-Titled-Tuesday-Blitz-March-26-2024"]
[Site "Chess.com"]
[Date "2024.03.26"]
[Round "10"]
[White "Midgardsormur"]
[Black "Let_it_be_1"]
[Result "0-1"]
[WhiteElo "2450"]
[BlackElo "2645"]
[TimeControl "180+1"]
[EndTime "9:52:51 PDT"]
[Termination "Let_it_be_1 won by resignation"]

1. e4 {[%clk 0:03:00.9]} 1... e6 {[%clk 0:02:59.8]} 2. d4 {[%clk 0:03:00.3]}
2... d5 {[%clk 0:02:59.2]} 3. e5 {[%clk 0:03:00.5]} 3... c5 {[%clk 0:02:59.1]}
4. c3 {[%clk 0:03:00.6]} 4... Qb6 {[%clk 0:02:59.1]} 5. Nf3 {[%clk 0:02:55.9]}
5... Nc6 {[%clk 0:02:59.2]} 6. Bd3 {[%clk 0:02:52.1]} 6... cxd4 {[%clk
0:02:59.1]} 7. O-O {[%clk 0:02:49.3]} 7... Bd7 {[%clk 0:02:58.8]} 8. Re1 {[%clk
0:02:49.2]} 8... Rc8 {[%clk 0:02:58.6]} 9. Nbd2 {[%clk 0:02:47.6]} 9... dxc3
{[%clk 0:02:58.4]} 10. bxc3 {[%clk 0:02:47.7]} 10... Na5 {[%clk 0:02:58.6]} 11.
Rb1 {[%clk 0:02:46.1]} 11... Qc7 {[%clk 0:02:58.7]} 12. Nb3 {[%clk 0:02:08.5]}
12... Nc4 {[%clk 0:02:53.9]} 13. Nbd4 {[%clk 0:02:04.5]} 13... a6 {[%clk
0:02:51]} 14. h4 {[%clk 0:02:01.4]} 14... Ne7 {[%clk 0:02:49.2]} 15. h5 {[%clk
0:02:01.2]} 15... h6 {[%clk 0:02:48.9]} 16. Qe2 {[%clk 0:01:56.7]} 16... Nc6
{[%clk 0:02:38.8]} 17. Bf4 {[%clk 0:01:40.4]} 17... b5 {[%clk 0:02:21]} 18. g3
{[%clk 0:01:23.7]} 18... Nxd4 {[%clk 0:02:20.4]} 19. cxd4 {[%clk 0:01:13.5]}
19... Be7 {[%clk 0:02:15]} 20. Kg2 {[%clk 0:01:12.9]} 20... Qa5 {[%clk
0:02:09.1]} 21. g4 {[%clk 0:00:50.7]} 21... Kd8 {[%clk 0:01:44.2]} 22. a4 {[%clk
0:00:34.1]} 22... bxa4 {[%clk 0:01:17.3]} 23. Rb7 {[%clk 0:00:33.7]} 23... Bc6
{[%clk 0:01:12]} 24. Rbb1 {[%clk 0:00:19.4]} 24... a3 {[%clk 0:01:12]} 25. Qa2
{[%clk 0:00:17.4]} 25... Bb5 {[%clk 0:00:57.2]} 26. Rb3 {[%clk 0:00:17]} 26...
Kd7 {[%clk 0:00:53.1]} 27. Reb1 {[%clk 0:00:17]} 27... Rc7 {[%clk 0:00:52]} 28.
Nd2 {[%clk 0:00:17]} 28... Qa4 {[%clk 0:00:43.1]} 29. Rc3 {[%clk 0:00:09.2]}
29... Rhc8 {[%clk 0:00:39.1]} 30. Nxc4 {[%clk 0:00:08.6]} 30... Bxc4 {[%clk
0:00:35.3]} 31. Bxc4 {[%clk 0:00:08.7]} 31... Rxc4 {[%clk 0:00:33.8]} 32. Rb7+
{[%clk 0:00:08.6]} 32... R8c7 {[%clk 0:00:34.2]} 33. Rxc7+ {[%clk 0:00:07]}
33... Kxc7 {[%clk 0:00:34.6]} 34. Rb3 {[%clk 0:00:07.3]} 34... Rxd4 {[%clk
0:00:29.8]} 35. Qc2+ {[%clk 0:00:07.3]} 35... Rc4 {[%clk 0:00:28.3]} 0-1

[Event "Early-Titled-Tuesday-Blitz-March-26-2024"]
[Site "Chess.com"]
[Date "2024.03.26"]
[Round "10"]
[White "Slovineanu"]
[Black "Karttunen"]
[Result "0-1"]
[WhiteElo "2534"]
[BlackElo "2726"]
[TimeControl "180+1"]
[EndTime "9:52:53 PDT"]
[Termination "Karttunen won by resignation"]

1. d4 {[%clk 0:02:58.4]} 1... e6 {[%clk 0:02:57.2]} 2. c4 {[%clk 0:02:57.7]}
2... Nf6 {[%clk 0:02:52.8]} 3. Nf3 {[%clk 0:02:57.6]} 3... d5 {[%clk 0:02:52.6]}
4. e3 {[%clk 0:02:57.5]} 4... Bb4+ {[%clk 0:02:49.5]} 5. Nbd2 {[%clk 0:02:57.1]}
5... O-O {[%clk 0:02:47.9]} 6. a3 {[%clk 0:02:57.3]} 6... Be7 {[%clk 0:02:47.6]}
7. Bd3 {[%clk 0:02:56.4]} 7... b6 {[%clk 0:02:46.8]} 8. O-O {[%clk 0:02:56]}
8... Bb7 {[%clk 0:02:46.6]} 9. b4 {[%clk 0:02:55]} 9... a5 {[%clk 0:02:45.9]}
10. b5 {[%clk 0:02:54]} 10... c5 {[%clk 0:02:43.8]} 11. Bb2 {[%clk 0:02:47.4]}
11... cxd4 {[%clk 0:02:40.3]} 12. Bxd4 {[%clk 0:02:47.1]} 12... Nbd7 {[%clk
0:02:38.6]} 13. cxd5 {[%clk 0:02:22.6]} 13... exd5 {[%clk 0:02:31]} 14. a4
{[%clk 0:02:13.1]} 14... Nc5 {[%clk 0:02:30.8]} 15. Qe2 {[%clk 0:02:07.6]} 15...
Re8 {[%clk 0:02:19.8]} 16. Rfc1 {[%clk 0:02:06.6]} 16... Bd6 {[%clk 0:02:17.8]}
17. Bc2 {[%clk 0:01:52.6]} 17... Qe7 {[%clk 0:02:07.6]} 18. Nb3 {[%clk
0:01:49.3]} 18... Nfe4 {[%clk 0:01:47.8]} 19. Bb2 {[%clk 0:01:28.1]} 19... Nxb3
{[%clk 0:01:37.2]} 20. Bxb3 {[%clk 0:01:28]} 20... Rad8 {[%clk 0:01:19.5]} 21.
Bd4 {[%clk 0:01:16.5]} 21... Nc5 {[%clk 0:01:16.1]} 22. Bc2 {[%clk 0:01:11.8]}
22... h6 {[%clk 0:01:09.6]} 23. g3 {[%clk 0:01:11]} 23... Rc8 {[%clk 0:01:08.5]}
24. Nh4 {[%clk 0:01:05]} 24... g6 {[%clk 0:01:00]} 25. Nf3 {[%clk 0:01:02.6]}
25... Rc7 {[%clk 0:00:56.7]} 26. Kg2 {[%clk 0:01:01.3]} 26... Rec8 {[%clk
0:00:56.6]} 27. Bb2 {[%clk 0:01:00.3]} 27... d4 {[%clk 0:00:51.4]} 28. Bxd4
{[%clk 0:00:48.1]} 28... Nb3 {[%clk 0:00:51.7]} 29. Bxb3 {[%clk 0:00:46.9]}
29... Rxc1 {[%clk 0:00:51.5]} 30. Rxc1 {[%clk 0:00:47.1]} 30... Rxc1 {[%clk
0:00:52.2]} 31. Bb2 {[%clk 0:00:26.1]} 31... Rc5 {[%clk 0:00:49.5]} 32. Kg1
{[%clk 0:00:16.1]} 32... Qe4 {[%clk 0:00:46.9]} 33. Bd1 {[%clk 0:00:13.1]} 33...
Rf5 {[%clk 0:00:43.6]} 34. Kg2 {[%clk 0:00:09.3]} 34... Qb4 {[%clk 0:00:38.4]}
35. Qc2 {[%clk 0:00:03.6]} 35... Bc5 {[%clk 0:00:30]} 36. g4 {[%clk 0:00:02.2]}
36... Qxg4+ {[%clk 0:00:29.5]} 0-1

[Event "Early-Titled-Tuesday-Blitz-March-26-2024"]
[Site "Chess.com"]
[Date "2024.03.26"]
[Round "10"]
[White "Meri-Arabidze"]
[Black "Zhigalko_Sergei"]
[Result "0-1"]
[WhiteElo "2669"]
[BlackElo "2885"]
[TimeControl "180+1"]
[EndTime "9:52:57 PDT"]
[Termination "Zhigalko_Sergei won on time"]

1. Nf3 {[%clk 0:03:00.9]} 1... d5 {[%clk 0:02:59]} 2. c4 {[%clk 0:03:00.9]} 2...
d4 {[%clk 0:02:59.1]} 3. b4 {[%clk 0:03:00.9]} 3... Bg4 {[%clk 0:02:57.5]} 4. g3
{[%clk 0:02:56.2]} 4... Bxf3 {[%clk 0:02:49.1]} 5. exf3 {[%clk 0:02:57.1]} 5...
e5 {[%clk 0:02:49.7]} 6. a3 {[%clk 0:02:57.2]} 6... a5 {[%clk 0:02:48.1]} 7. b5
{[%clk 0:02:56.7]} 7... Nd7 {[%clk 0:02:48.5]} 8. Bg2 {[%clk 0:02:56]} 8... Nc5
{[%clk 0:02:48.7]} 9. O-O {[%clk 0:02:56.2]} 9... Bd6 {[%clk 0:02:48.7]} 10. a4
{[%clk 0:02:56.1]} 10... Nf6 {[%clk 0:02:40]} 11. d3 {[%clk 0:02:56]} 11... O-O
{[%clk 0:02:39.9]} 12. Ba3 {[%clk 0:02:50.7]} 12... Nfd7 {[%clk 0:02:39.2]} 13.
Qc2 {[%clk 0:02:45.6]} 13... f5 {[%clk 0:02:24.5]} 14. Nd2 {[%clk 0:02:43.1]}
14... Qf6 {[%clk 0:02:19]} 15. Rfe1 {[%clk 0:02:33.7]} 15... Rae8 {[%clk
0:02:12.2]} 16. Re2 {[%clk 0:02:20.8]} 16... Re7 {[%clk 0:02:04.2]} 17. Rae1
{[%clk 0:02:17.2]} 17... Rfe8 {[%clk 0:02:04.4]} 18. Bb2 {[%clk 0:02:03.8]}
18... Ne6 {[%clk 0:01:51.2]} 19. f4 {[%clk 0:01:56.6]} 19... exf4 {[%clk
0:01:41.7]} 20. Bxb7 {[%clk 0:01:56.2]} 20... fxg3 {[%clk 0:01:42.1]} 21. hxg3
{[%clk 0:01:44.8]} 21... Bb4 {[%clk 0:01:24.1]} 22. Bd5 {[%clk 0:01:36.6]} 22...
Nc5 {[%clk 0:01:24.2]} 23. Ra1 {[%clk 0:01:22]} 23... Bxd2 {[%clk 0:00:35.9]}
24. Rxd2 {[%clk 0:01:22.9]} 24... Kh8 {[%clk 0:00:34.7]} 25. Ba3 {[%clk
0:01:03.5]} 25... f4 {[%clk 0:00:27.8]} 26. Qd1 {[%clk 0:00:46.8]} 26... Qg5
{[%clk 0:00:26.9]} 27. Kg2 {[%clk 0:00:30.1]} 27... fxg3 {[%clk 0:00:26]} 28.
Bxc5 {[%clk 0:00:17.4]} 28... gxf2+ {[%clk 0:00:23.1]} 29. Kxf2 {[%clk
0:00:15.8]} 29... Nxc5 {[%clk 0:00:20.7]} 30. Raa2 {[%clk 0:00:08.2]} 30... Rf8+
{[%clk 0:00:16.8]} 31. Bf3 {[%clk 0:00:08.4]} 31... Re3 {[%clk 0:00:16.7]} 0-1

[Event "Early-Titled-Tuesday-Blitz-March-26-2024"]
[Site "Chess.com"]
[Date "2024.03.26"]
[Round "10"]
[White "ploxoi"]
[Black "Vahe_Danielyan"]
[Result "0-1"]
[WhiteElo "2427"]
[BlackElo "2609"]
[TimeControl "180+1"]
[EndTime "9:52:57 PDT"]
[Termination "Vahe_Danielyan won by resignation"]

1. d4 {[%clk 0:03:00.9]} 1... Nf6 {[%clk 0:02:59.9]} 2. c4 {[%clk 0:02:59.9]}
2... g6 {[%clk 0:03:00.4]} 3. Nc3 {[%clk 0:02:59.6]} 3... Bg7 {[%clk 0:03:01]}
4. e3 {[%clk 0:02:59.9]} 4... O-O {[%clk 0:03:00.9]} 5. Nf3 {[%clk 0:02:50.8]}
5... d6 {[%clk 0:02:57]} 6. Bd3 {[%clk 0:02:49.3]} 6... Nbd7 {[%clk 0:02:56.1]}
7. O-O {[%clk 0:02:46.1]} 7... e5 {[%clk 0:02:57]} 8. Qc2 {[%clk 0:02:31.6]}
8... c6 {[%clk 0:02:46.7]} 9. Rd1 {[%clk 0:02:30.8]} 9... Qe7 {[%clk 0:02:43.7]}
10. b3 {[%clk 0:02:25.4]} 10... Re8 {[%clk 0:02:32]} 11. dxe5 {[%clk 0:02:00.6]}
11... dxe5 {[%clk 0:02:32.9]} 12. Be2 {[%clk 0:02:00.8]} 12... e4 {[%clk
0:02:28]} 13. Nd4 {[%clk 0:01:59.6]} 13... a6 {[%clk 0:01:55]} 14. a4 {[%clk
0:01:52.4]} 14... c5 {[%clk 0:01:51.7]} 15. Ba3 {[%clk 0:01:48.4]} 15... cxd4
{[%clk 0:01:28.7]} 16. Bxe7 {[%clk 0:01:46.8]} 16... d3 {[%clk 0:01:29.2]} 17.
Bxd3 {[%clk 0:01:31]} 17... exd3 {[%clk 0:01:30.1]} 18. Rxd3 {[%clk 0:01:31.6]}
18... Rxe7 {[%clk 0:01:29.6]} 19. Rad1 {[%clk 0:01:32.3]} 19... Re8 {[%clk
0:01:23.2]} 20. Rd6 {[%clk 0:01:21.8]} 20... Ne5 {[%clk 0:01:10.6]} 21. Rd8
{[%clk 0:01:13.8]} 21... Bf5 {[%clk 0:01:09.7]} 22. Rxa8 {[%clk 0:01:10.7]}
22... Bxc2 {[%clk 0:01:05.4]} 23. Rxe8+ {[%clk 0:01:08.5]} 23... Nxe8 {[%clk
0:01:06.3]} 24. Rd8 {[%clk 0:01:06.8]} 24... Kf8 {[%clk 0:01:06.8]} 25. Rb8
{[%clk 0:01:06.5]} 25... Nc6 {[%clk 0:01:05.2]} 26. Rxb7 {[%clk 0:01:00.2]}
26... Bxc3 {[%clk 0:01:05.7]} 27. Rb6 {[%clk 0:01:00.9]} 27... Ne5 {[%clk
0:01:00.9]} 28. Rxa6 {[%clk 0:00:59.5]} 28... Bxb3 {[%clk 0:00:58.9]} 29. c5
{[%clk 0:01:00.1]} 29... Bd5 {[%clk 0:00:57.1]} 30. f3 {[%clk 0:00:59.2]} 30...
Nc7 {[%clk 0:00:46.2]} 31. Ra7 {[%clk 0:00:54.6]} 31... Ne6 {[%clk 0:00:46]} 32.
f4 {[%clk 0:00:39.1]} 32... Nc4 {[%clk 0:00:44.5]} 33. Rd7 {[%clk 0:00:26.9]}
33... Nxe3 {[%clk 0:00:36.7]} 34. c6 {[%clk 0:00:24.3]} 34... Bxc6 {[%clk
0:00:35.7]} 35. Rd3 {[%clk 0:00:24.4]} 35... Bd4 {[%clk 0:00:35.8]} 36. Kf2
{[%clk 0:00:20]} 36... Bxa4 {[%clk 0:00:30.2]} 37. g3 {[%clk 0:00:15.7]} 37...
h5 {[%clk 0:00:26.8]} 38. Ra3 {[%clk 0:00:14.7]} 38... Nc2+ {[%clk 0:00:23.1]}
0-1

[Event "Early-Titled-Tuesday-Blitz-March-26-2024"]
[Site "Chess.com"]
[Date "2024.03.26"]
[Round "10"]
[White "CADMartin"]
[Black "Chessmissile07"]
[Result "0-1"]
[WhiteElo "2534"]
[BlackElo "2905"]
[TimeControl "180+1"]
[EndTime "9:52:58 PDT"]
[Termination "Chessmissile07 won by resignation"]

1. e4 {[%clk 0:03:00.9]} 1... a6 {[%clk 0:03:00.9]} 2. d4 {[%clk 0:02:53]} 2...
d6 {[%clk 0:02:55.3]} 3. c4 {[%clk 0:02:51.6]} 3... e5 {[%clk 0:02:50.5]} 4. d5
{[%clk 0:02:50.4]} 4... f5 {[%clk 0:02:41.7]} 5. Nc3 {[%clk 0:02:48.7]} 5... Nf6
{[%clk 0:02:39.7]} 6. Bd3 {[%clk 0:02:45.6]} 6... fxe4 {[%clk 0:02:35.6]} 7.
Nxe4 {[%clk 0:02:44.6]} 7... Be7 {[%clk 0:02:32.1]} 8. Ne2 {[%clk 0:02:41.8]}
8... Nxe4 {[%clk 0:02:23.8]} 9. Bxe4 {[%clk 0:02:41.3]} 9... Nd7 {[%clk
0:02:17.9]} 10. Ng3 {[%clk 0:02:24.3]} 10... Nf6 {[%clk 0:02:17.8]} 11. O-O
{[%clk 0:02:24.8]} 11... Nxe4 {[%clk 0:02:06.4]} 12. Nxe4 {[%clk 0:02:24]} 12...
O-O {[%clk 0:02:07]} 13. Qe2 {[%clk 0:02:20.8]} 13... Bf5 {[%clk 0:02:06.7]} 14.
f3 {[%clk 0:02:18.9]} 14... Bxe4 {[%clk 0:01:51.6]} 15. Qxe4 {[%clk 0:02:19.8]}
15... Bg5 {[%clk 0:01:51.3]} 16. c5 {[%clk 0:02:13.2]} 16... dxc5 {[%clk
0:01:40.8]} 17. Qxe5 {[%clk 0:02:13]} 17... Bf6 {[%clk 0:01:40.8]} 18. Qe6+
{[%clk 0:02:13.3]} 18... Kh8 {[%clk 0:01:41]} 19. Rb1 {[%clk 0:02:09.2]} 19...
Qd6 {[%clk 0:01:28.6]} 20. Qxd6 {[%clk 0:01:59.9]} 20... cxd6 {[%clk 0:01:29.5]}
21. Bd2 {[%clk 0:01:55.9]} 21... Rae8 {[%clk 0:01:26.3]} 22. Rfe1 {[%clk
0:01:56.2]} 22... Kg8 {[%clk 0:01:23.8]} 23. Kf1 {[%clk 0:01:55.5]} 23... Kf7
{[%clk 0:01:20.1]} 24. Bf4 {[%clk 0:01:55.2]} 24... Rxe1+ {[%clk 0:01:16.6]} 25.
Rxe1 {[%clk 0:01:56.1]} 25... Rd8 {[%clk 0:01:12.2]} 26. Re6 {[%clk 0:01:55.9]}
26... Bxb2 {[%clk 0:00:54.2]} 27. Bxd6 {[%clk 0:01:47.1]} 27... Bf6 {[%clk
0:00:54.4]} 28. Ke2 {[%clk 0:01:44.4]} 28... c4 {[%clk 0:00:50.3]} 29. Kd1
{[%clk 0:01:44.4]} 29... b5 {[%clk 0:00:49]} 30. Kc2 {[%clk 0:01:42.2]} 30... a5
{[%clk 0:00:36.1]} 31. g4 {[%clk 0:01:41.3]} 31... b4 {[%clk 0:00:33.8]} 32. f4
{[%clk 0:01:41.1]} 32... g6 {[%clk 0:00:31]} 33. g5 {[%clk 0:01:40.9]} 33... Bg7
{[%clk 0:00:21.9]} 34. Re7+ {[%clk 0:01:40.5]} 34... Kg8 {[%clk 0:00:22.3]} 35.
Re6 {[%clk 0:01:16]} 35... Bf8 {[%clk 0:00:19.1]} 36. Bxf8 {[%clk 0:01:05.1]}
36... Kxf8 {[%clk 0:00:20]} 37. d6 {[%clk 0:01:01.5]} 37... Re8 {[%clk
0:00:06.9]} 38. Rf6+ {[%clk 0:00:57.6]} 38... Kg7 {[%clk 0:00:06.9]} 39. d7
{[%clk 0:00:58]} 39... Rd8 {[%clk 0:00:06.8]} 40. Ra6 {[%clk 0:00:54.8]} 40...
Rxd7 {[%clk 0:00:06.5]} 41. Rxa5 {[%clk 0:00:55.5]} 41... c3 {[%clk 0:00:06.9]}
42. a3 {[%clk 0:00:51.6]} 42... Rd2+ {[%clk 0:00:06.5]} 43. Kb3 {[%clk
0:00:51.8]} 43... Rb2+ {[%clk 0:00:06.6]} 44. Ka4 {[%clk 0:00:51.7]} 44... c2
{[%clk 0:00:06.8]} 45. Rc5 {[%clk 0:00:50.6]} 45... b3 {[%clk 0:00:07.3]} 46.
Rc8 {[%clk 0:00:48.5]} 46... Rb1 {[%clk 0:00:07.2]} 47. Rc7+ {[%clk 0:00:48.8]}
47... Kf8 {[%clk 0:00:07.3]} 0-1

[Event "Early-Titled-Tuesday-Blitz-March-26-2024"]
[Site "Chess.com"]
[Date "2024.03.26"]
[Round "10"]
[White "verrbaa"]
[Black "NelsonLinda"]
[Result "0-1"]
[WhiteElo "2481"]
[BlackElo "2644"]
[TimeControl "180+1"]
[EndTime "9:52:59 PDT"]
[Termination "NelsonLinda won on time"]

1. e4 {[%clk 0:02:58.1]} 1... c5 {[%clk 0:02:55.8]} 2. Nf3 {[%clk 0:02:58.3]}
2... e6 {[%clk 0:02:56.2]} 3. d4 {[%clk 0:02:58.4]} 3... cxd4 {[%clk 0:02:57.1]}
4. Nxd4 {[%clk 0:02:58.9]} 4... Nf6 {[%clk 0:02:57.8]} 5. Nc3 {[%clk 0:02:59.3]}
5... d6 {[%clk 0:02:58.4]} 6. g4 {[%clk 0:02:56.6]} 6... e5 {[%clk 0:02:56.3]}
7. Nf5 {[%clk 0:02:55.8]} 7... Nc6 {[%clk 0:02:55.7]} 8. g5 {[%clk 0:02:36.9]}
8... Nxe4 {[%clk 0:02:54.5]} 9. Nxg7+ {[%clk 0:02:37.5]} 9... Bxg7 {[%clk
0:02:54.3]} 10. Nxe4 {[%clk 0:02:38.2]} 10... d5 {[%clk 0:02:54.8]} 11. Ng3
{[%clk 0:02:38.2]} 11... Be6 {[%clk 0:02:28.2]} 12. Bg2 {[%clk 0:02:28.1]} 12...
Qd7 {[%clk 0:02:24.3]} 13. Nh5 {[%clk 0:02:27.1]} 13... Rg8 {[%clk 0:02:22.7]}
14. c3 {[%clk 0:02:06.9]} 14... Bh8 {[%clk 0:02:20.4]} 15. Qa4 {[%clk
0:01:45.4]} 15... O-O-O {[%clk 0:02:15.7]} 16. Bd2 {[%clk 0:01:43.3]} 16... Kb8
{[%clk 0:02:03]} 17. b4 {[%clk 0:01:34.2]} 17... e4 {[%clk 0:01:50.7]} 18. b5
{[%clk 0:01:13.8]} 18... Ne5 {[%clk 0:01:50.6]} 19. O-O {[%clk 0:01:03.8]} 19...
Bh3 {[%clk 0:01:11.2]} 20. Be3 {[%clk 0:00:23.4]} 20... b6 {[%clk 0:01:07.3]}
21. Ng3 {[%clk 0:00:22.1]} 21... Qg4 {[%clk 0:00:54]} 22. Rfd1 {[%clk
0:00:07.5]} 22... Nf3+ {[%clk 0:00:44.6]} 23. Kh1 {[%clk 0:00:07.6]} 23... Bxg2+
{[%clk 0:00:29.7]} 24. Kxg2 {[%clk 0:00:08.5]} 24... Bxc3 {[%clk 0:00:29.3]} 25.
Rac1 {[%clk 0:00:08.1]} 25... Be5 {[%clk 0:00:29.5]} 26. Bxb6 {[%clk 0:00:03]}
26... axb6 {[%clk 0:00:13]} 27. Qa6 {[%clk 0:00:03.1]} 27... Rg6 {[%clk
0:00:11.7]} 28. Rc6 {[%clk 0:00:02.6]} 28... Nh4+ {[%clk 0:00:07.6]} 0-1